bitfinex-derivatives/quotes_ETHF0:USTF0_20250103
["timestamp","ask_amount","ask_price","bid_price","bid_amount"]
[1735917794386,3.2078,3530.2,3530.1,0.28349]
[1735917794591,3.49128,3530.2,3530.1,0.28349]
[1735917794790,0.2835,3530.0,3529.9,0.28349]
[1735917794996,0.28352,3529.8,3529.7,0.28351]
[1735917795296,0.5864,3529.9,3529.8,0.28351]
[1735917795798,3.49127,3530.3,3530.2,0.28348]
[1735917796001,0.28348,3530.2,3530.1,0.28348]
[1735917796700,0.28348,3530.2,3529.6,0.70882]
[1735917796701,3.7942,3530.3,3530.2,0.28348]
[1735917797100,3.2078,3530.8,3530.7,0.28344]
[1735917797408,0.5864,3530.9,3530.8,0.28343]
[1735917797812,3.2078,3531.4,3531.3,0.28339]
[1735917799003,0.28337,3531.6,3531.0,0.70853]
[1735917799200,0.28337,3531.6,3531.5,0.28337]
[1735917799602,0.5864,3531.7,3530.9,0.70855]
[1735917799906,0.86976,3531.7,3531.6,0.28337]
[1735917800213,0.86976,3531.7,3530.2,4.8943]
[1735917800214,0.5864,3531.7,3530.2,4.8943]
[1735917800511,0.28341,3531.1,3530.9,0.28342]
[1735917800812,3.4912,3531.2,3531.0,0.28341]
[1735917801504,0.5864,3531.7,3530.5,2.49909994]
[1735917801709,0.86976,3531.7,3531.5,0.28337]
[1735917801911,0.5864,3531.7,3531.6,0.28337]
[1735917802505,0.5864,3531.7,3530.8,0.70857]
[1735917802710,0.86976,3531.7,3530.8,0.70857]
[1735917802906,0.5864,3531.7,3531.0,0.70853]
[1735917803107,0.5864,3531.7,3530.8,0.70857]
[1735917803312,3.2078,3531.4,3531.3,0.28338]
[1735917803510,3.2078,3531.4,3530.6,3.2078]
[1735917803909,3.2078,3531.4,3531.3,0.28339]
[1735917804115,3.49118,3531.4,3531.3,0.28339]
[1735917804310,3.2078,3531.4,3531.3,0.28339]
[1735917804511,3.49118,3531.4,3531.3,0.28339]
[1735917804709,3.2078,3531.4,3530.2,3.6213]
[1735917804916,3.2078,3531.4,3530.9,0.28342]
[1735917804917,3.49122,3531.0,3530.9,0.28342]
[1735917805115,3.2078,3531.0,3530.9,0.28342]
[1735917805312,3.2078,3531.0,3529.8,1.8578]
[1735917805313,0.5864,3531.7,3531.3,0.28339]
[1735917805612,0.5864,3531.7,3531.0,0.70853]
[1735917805812,0.28337,3531.6,3531.5,0.28337]
[1735917806112,0.5864,3531.7,3530.6,3.2078]
[1735917806313,0.5864,3531.7,3531.6,0.28337]
[1735917807617,0.5864,3531.7,3530.8,0.70856]
[1735917807808,3.49118,3531.4,3531.3,0.28339]
[1735917808002,0.2834,3531.3,3530.8,0.70856]
[1735917808209,3.2078,3531.4,3530.5,0.70862]
[1735917808504,3.2078,3531.4,3531.1,0.28341]
[1735917808709,3.2078,3531.4,3531.3,0.28339]
[1735917809111,0.5864,3531.7,3531.6,0.28337]
[1735917809311,0.5864,3531.7,3531.4,0.28338]
[1735917809516,0.28337,3531.5,3531.4,0.28338]
[1735917809711,0.28338,3531.4,3531.3,0.28339]
[1735917809913,3.2078,3531.4,3530.7,0.70858]
[1735917810114,3.2078,3531.4,3531.3,0.28338]
[1735917810416,3.49118,3531.4,3531.3,0.28338]
[1735917810911,3.2078,3531.4,3531.3,0.28338]
[1735917811310,0.5864,3531.7,3530.6,1.41725]
[1735917811508,0.86976,3531.7,3531.6,0.28337]
[1735917811717,0.28337,3531.6,3531.5,0.28337]
[1735917812018,0.5864,3531.7,3531.6,0.28337]
[1735917812019,0.86976,3531.7,3531.6,0.28337]
[1735917812220,0.28337,3531.6,3531.5,0.28337]
[1735917812416,0.5864,3531.7,3531.5,0.28337]
[1735917812718,0.5864,3531.7,3531.3,0.28338]
[1735917812914,0.28338,3531.4,3531.3,0.28338]
[1735917813113,0.28339,3531.3,3531.2,0.28339]
[1735917813517,0.28341,3531.0,3530.9,0.28341]
[1735917813826,3.2078,3531.0,3530.1,3.2078]
[1735917814022,0.5706,3530.9,3530.1,3.2078]
[1735917814222,0.5706,3530.9,3530.8,0.28343]
[1735917815720,0.28343,3530.8,3530.5,0.28345]
[1735917815918,3.49125,3530.6,3530.5,0.28345]
[1735917816112,3.2078,3530.6,3530.5,0.28345]
[1735917816513,0.5706,3530.9,3530.8,0.28343]
[1735917816917,0.85402,3530.9,3530.1,0.7087]
[1735917817223,3.7784,3530.9,3530.1,0.7087]
[1735917817422,0.28343,3530.8,3530.7,0.28343]
[1735917818422,3.7784,3530.9,3530.2,0.7087]
[1735917818822,0.5706,3530.9,3530.8,0.28343]
[1735917819015,0.4432,3531.2,3530.8,0.28343]
[1735917819217,0.7266,3531.2,3531.1,0.28341]
[1735917819522,0.4432,3531.2,3531.1,0.28341]
[1735917819825,0.4432,3531.2,3530.5,0.70863]
[1735917820322,0.4432,3531.2,3531.1,0.28341]
[1735917820721,3.2078,3531.3,3531.2,0.2834]
[1735917821015,2.15247,3531.6,3531.5,0.28337]
[1735917821016,0.5961,3531.6,3531.5,0.28337]
[1735917821217,0.87947,3531.6,3531.5,0.28337]
[1735917821421,0.5961,3531.6,3530.9,2.56157616]
[1735917821617,0.5961,3531.6,3531.5,0.28337]
[1735917821817,0.87947,3531.6,3531.5,0.28337]
[1735917822019,0.5961,3531.6,3531.5,0.28337]
[1735917822217,3.2078,3531.7,3531.2,1.97317616]
[1735917822419,3.2078,3531.7,3531.6,0.28337]
[1735917823219,0.2834,3531.3,3530.8,3.2078]
[1735917823417,0.2834,3531.2,3531.1,0.2834]
[1735917823724,0.28344,3530.7,3530.6,4.6694743]
[1735917823923,0.28344,3530.8,3530.7,0.28343]
[1735917824517,3.2078,3530.9,3530.8,0.28343]
[1735917825526,0.28344,3530.8,3530.7,0.28343]
[1735917825718,0.28345,3530.6,3530.5,0.28344]
[1735917826322,0.28344,3530.7,3530.6,0.28343]
[1735917826518,3.2078,3530.9,3530.2,0.4262]
[1735917826719,0.28343,3530.8,3530.7,0.28343]
[1735917827017,0.28345,3530.6,3530.5,0.28345]
[1735917827220,0.6166,3530.8,3529.9,0.70876]
[1735917827420,0.28346,3530.5,3530.4,0.28346]
[1735917827619,0.28348,3530.3,3529.8,3.2078]
[1735917827820,0.28349,3530.2,3530.1,0.28348]
[1735917828019,0.5483,3530.4,3529.8,3.2078]
[1735917828219,0.5483,3530.4,3530.3,0.28347]
[1735917828624,0.28344,3530.7,3530.0,1.97317616]
[1735917828820,1.96993,3530.8,3530.7,0.28344]
[1735917829215,1.6865,3530.8,3530.2,0.70869]
[1735917829527,1.6865,3530.8,3530.7,0.28344]
[1735917829718,3.7862,3530.9,3530.8,0.28343]
[1735917831018,3.2078,3530.9,3530.8,0.28343]
[1735917831419,4.34308935,3531.4,3531.3,0.28339]
[1735917831621,3.31008935,3531.4,3531.3,2.25656616]
[1735917832323,3.31008935,3531.4,3531.3,0.28339]
[1735917832819,3.31008935,3531.4,3531.0,3.2078]
[1735917832820,3.2078,3531.7,3531.6,0.28337]
[1735917833217,0.1,3532.0,3531.9,0.28334]
[1735917835831,0.38333,3532.0,3531.9,0.28334]
[1735917836025,0.1,3532.0,3531.9,0.28334]
[1735917838518,0.1,3532.0,3531.9,2.25651616]
[1735917838830,0.1,3532.0,3531.9,0.28334]
[1735917840124,0.38333,3532.0,3531.9,0.28334]
[1735917840320,0.38334,3532.0,3531.9,0.28334]
[1735917840524,0.1,3532.0,3531.9,0.28334]
[1735917842529,0.1,3532.0,3531.4,0.70846]
[1735917842728,3.49115,3531.8,3531.7,0.28335]
[1735917843230,3.2078,3531.8,3531.7,0.28335]
[1735917844030,0.5585,3531.9,3531.3,0.70848]
[1735917844234,0.5585,3531.9,3531.1,0.70851]
[1735917844430,0.5585,3531.9,3531.0,1.97317616]
[1735917844732,3.2078,3531.8,3531.7,0.28335]
[1735917845032,4.4798,3531.8,3531.0,4.3860343]
[1735917845228,0.2834,3531.3,3531.2,0.28339]
[1735917845526,3.2078,3531.4,3531.3,0.28339]
[1735917845726,3.2078,3531.5,3531.0,4.3860343]
[1735917845935,1.7253,3531.7,3531.1,0.70852]
[1735917846128,3.2078,3531.5,3531.2,0.2834]
[1735917846326,3.49118,3531.5,3531.4,0.28338]
[1735917846821,3.2078,3531.5,3530.9,0.70855]
[1735917847029,3.49118,3531.5,3531.4,0.28338]
[1735917847328,3.2078,3531.5,3531.4,0.28338]
[1735917847529,3.49117,3531.5,3531.4,0.28338]
[1735917847733,3.2078,3531.5,3531.4,0.28338]
[1735917848836,3.2078,3531.5,3530.6,5.0946443]
[1735917849134,0.28341,3531.2,3531.1,0.2834]
[1735917849329,0.28343,3530.9,3530.8,0.28342]
[1735917849628,3.2078,3531.0,3530.6,4.3860343]
[1735917849928,0.4533,3531.7,3531.6,0.28337]
[1735917850133,0.73666,3531.7,3531.6,0.28337]
[1735917850528,0.28338,3531.5,3531.4,0.28338]
[1735917850735,0.91967,3531.6,3531.5,0.28337]
[1735917851231,0.6363,3531.6,3530.9,0.70854]
[1735917851534,0.6363,3531.6,3531.2,0.28339]
[1735917851535,0.28339,3531.3,3531.2,0.28339]
[1735917851731,3.49119,3531.4,3531.3,0.28339]
[1735917852230,6.82365003,3531.4,3531.3,0.28339]
[1735917853329,6.54026003,3531.4,3531.3,0.28339]
[1735917853530,3.2078,3531.4,3530.8,0.70856]
[1735917853737,0.2834,3531.2,3531.1,0.2834]
[1735917854227,0.28339,3531.3,3531.1,0.2834]
[1735917854428,0.2834,3531.2,3531.1,0.2834]
[1735917854731,3.33246003,3531.3,3530.6,0.70862]
[1735917854930,3.61585003,3531.3,3531.2,0.2834]
[1735917855238,3.33246003,3531.3,3530.5,3.2078]
[1735917855636,0.28342,3531.0,3530.9,0.28342]
[1735917855835,7.81226003,3531.4,3530.7,0.7086]
[1735917856030,6.54026003,3531.4,3531.3,0.28339]
[1735917856931,3.2078,3531.4,3531.3,0.28339]
[1735917860736,3.49118,3531.4,3531.3,0.28339]
[1735917860933,3.2078,3531.4,3531.3,0.28339]
[1735917861639,0.2834,3531.3,3531.2,0.28339]
[1735917861839,3.49119,3531.4,3531.3,0.28339]
[1735917862640,3.2078,3531.4,3531.3,0.28339]
[1735917863143,3.33246003,3531.6,3530.7,1.97317616]
[1735917863341,3.33246003,3531.6,3531.5,0.28337]
[1735917864137,0.4533,3531.7,3531.2,0.70848]
[1735917864337,0.4533,3531.7,3531.6,0.28337]
[1735917864537,0.73666,3531.7,3531.6,0.28337]
[1735917865240,0.73666,3531.7,3531.0,0.70854]
[1735917865241,0.4533,3531.7,3531.0,0.70854]
[1735917865441,3.2078,3531.4,3530.9,7.5938343]
[1735917865647,0.28342,3530.9,3530.8,4.3860343]
[1735917866034,1.29182,3530.9,3530.8,4.3860343]
[1735917867242,1.0084,3530.9,3530.8,0.28343]
[1735917867441,1.0084,3530.9,3530.5,0.28345]
[1735917867646,3.2078,3530.6,3530.5,0.28345]
[1735917869345,2.21857972,3530.7,3530.6,0.28345]
[1735917869544,2.21857972,3530.8,3530.3,0.70867]
[1735917869750,2.21857972,3530.8,3530.7,0.28344]
[1735917870843,3.2078,3531.0,3530.4,3.15587616]
[1735917871047,2.50197972,3531.3,3531.2,0.2834]
[1735917871252,2.21857972,3531.3,3531.2,0.2834]
[1735917871848,2.50196972,3531.3,3531.2,0.2834]
[1735917872047,0.28341,3531.1,3531.0,0.28341]
[1735917872247,0.28341,3531.1,3530.9,0.28342]
[1735917872248,0.28343,3531.0,3530.9,0.28342]
[1735917872752,0.28343,3530.9,3530.8,0.28343]
[1735917873152,0.28343,3530.9,3530.6,4.44906273]
[1735917873153,3.2078,3531.1,3530.6,4.44906273]
[1735917873352,0.569,3530.8,3530.7,0.28343]
[1735917873746,5.70978972,3531.1,3530.4,0.70865]
[1735917873952,5.42637972,3531.1,3531.0,0.28341]
[1735917874153,2.21857972,3531.1,3531.0,0.28341]
[1735917874356,1.62578972,3531.1,3531.0,2.25658616]
[1735917874553,1.02523972,3531.1,3531.0,2.25658616]
[1735917874849,5.54988412,3531.6,3531.2,0.2834]
[1735917874850,3.32786958,3531.3,3531.2,0.2834]
[1735917876046,3.2078,3531.9,3531.2,4.44906273]
[1735917876246,0.1,3532.0,3531.5,0.70843]
[1735917876447,0.1,3532.0,3531.9,0.28334]
[1735917876653,0.1,3532.0,3531.9,5.46431616]
[1735917876845,4.4385957,3532.3,3531.9,5.46431616]
[1735917876846,4.4385957,3532.3,3532.2,0.28332]
[1735917877045,4.9965781,3532.5,3532.4,0.2833]
[1735917877255,2.9340481,3532.5,3532.4,8.4911]
[1735917877449,6.65789355,3532.9,3532.8,0.28327]
[1735917877645,6.65789355,3533.1,3533.0,0.28325]
[1735917877844,6.02918355,3533.1,3533.0,0.28325]
[1735917878051,6.02918355,3533.1,3533.0,5.28325]
[1735917878250,5.46177355,3533.1,3533.0,7.77670245]
[1735917878558,3.64948355,3533.1,3533.0,9.04770245]
[1735917878758,7.76502903,3533.3,3533.2,0.28324]
[1735917879053,0.28315,3534.3,3533.2,3.2078]
[1735917879259,0.28316,3534.3,3533.7,3.2078]
[1735917879553,3.2078,3534.8,3533.7,3.2078]
[1735917879857,3.2078,3534.8,3534.0,0.28317]
[1735917880059,0.28315,3534.4,3533.7,3.2078]
[1735917880260,0.28314,3534.5,3533.7,3.2078]
[1735917880454,0.28315,3534.4,3533.7,3.2078]
[1735917880656,0.28316,3534.2,3533.7,3.2078]
[1735917880960,0.28316,3534.2,3533.9,0.28318]
[1735917881259,0.28315,3534.3,3534.0,0.28317]
[1735917881455,3.2078,3534.4,3534.0,0.28317]
[1735917881663,0.28316,3534.2,3534.0,0.28317]
[1735917882857,0.28315,3534.3,3534.1,0.28316]
[1735917883059,3.2078,3534.4,3533.7,3.2078]
[1735917883357,3.2078,3534.8,3534.7,0.28312]
[1735917884458,3.71984826,3535.7,3534.7,0.7078]
[1735917884765,3.2078,3535.7,3535.1,2.49345245]
[1735917885263,1.2233,3535.9,3535.7,0.28303]
[1735917885556,2.23743,3536.1,3535.5,2.49345245]
[1735917885756,0.23016121,3536.9,3536.7,0.28295]
[1735917885757,3.2078,3536.9,3536.7,0.28295]
[1735917885958,3.2078,3537.5,3536.7,2.49345245]
[1735917886155,0.28288,3537.6,3536.7,5.70125245]
[1735917886355,0.28291,3537.3,3536.8,0.28294]
[1735917886561,0.28293,3537.1,3536.7,0.28296]
[1735917886863,3.2078,3537.2,3536.3,5.70125245]
[1735917887160,3.49072,3537.2,3536.8,0.28295]
[1735917887762,3.49072,3537.2,3536.7,0.28295]
[1735917888165,3.2078,3537.2,3536.3,5.70125245]
[1735917888356,3.2078,3537.2,3536.4,0.28297]
[1735917888357,0.28292,3537.1,3536.4,0.28297]
[1735917888564,0.28293,3537.0,3536.5,0.28297]
[1735917888761,0.28293,3537.0,3536.6,0.28296]
[1735917889071,3.49072,3537.2,3536.3,5.70125245]
[1735917889362,3.2078,3537.1,3536.3,5.70125245]
[1735917889564,3.2078,3537.2,3536.3,5.70125245]
[1735917889871,3.2078,3537.2,3536.9,0.28294]
[1735917890164,3.2078,3537.2,3536.9,0.28293]
[1735917890367,3.2078,3537.2,3536.3,3.2078]
[1735917890667,0.28294,3537.0,3536.7,0.28295]
[1735917890963,0.28294,3537.0,3536.6,0.28296]
[1735917891157,0.94304588,3537.2,3536.3,3.2078]
[1735917891358,40.8,3536.9,3536.3,3.2078]
[1735917891555,40.8,3536.9,3536.4,0.28298]
[1735917891761,40.8,3536.9,3536.3,3.2078]
[1735917892265,40.8,3536.9,3536.8,0.28295]
[1735917892465,3.2078,3537.5,3536.7,3.2078]
[1735917892662,3.2078,3537.7,3536.7,3.2078]
[1735917892862,40.8,3537.6,3536.7,3.2078]
[1735917893765,0.28292,3537.2,3536.9,0.28294]
[1735917893967,0.28292,3537.2,3536.8,0.28295]
[1735917894367,0.28294,3537.0,3536.7,3.49075]
[1735917894568,0.28295,3536.8,3536.7,3.2078]
[1735917894764,3.788,3536.9,3536.2,3.2078]
[1735917894966,0.4349,3536.7,3536.2,3.2078]
[1735917895468,0.28297,3536.5,3536.3,0.28299]
[1735917895661,41.08297,3536.6,3536.4,0.28298]
[1735917895862,0.28297,3536.5,3536.2,3.2078]
[1735917896059,0.4349,3536.7,3536.3,0.28299]
[1735917896266,0.28298,3536.5,3536.3,0.28299]
[1735917896468,0.4349,3536.7,3536.2,3.49079]
[1735917896668,0.4349,3536.7,3535.9,2.49345245]
[1735917896864,0.4349,3536.7,3535.8,3.2078]
[1735917896865,3.2078,3536.5,3535.8,3.2078]
[1735917897065,0.28303,3535.9,3535.6,0.28304]
[1735917897263,3.2078,3536.5,3535.4,3.2078]
[1735917897464,0.28305,3535.5,3535.4,3.2078]
[1735917897669,0.558,3535.8,3534.9,3.2078]
[1735917897866,0.28305,3535.5,3534.9,3.2078]
[1735917898062,0.28305,3535.5,3535.3,0.28307]
[1735917898270,0.4251,3535.7,3534.9,3.2078]
[1735917898469,0.28304,3535.6,3535.2,0.28307]
[1735917898777,0.28305,3535.6,3535.4,0.28306]
[1735917898973,4.2942,3535.7,3534.9,3.2078]
[1735917899271,0.28309,3535.0,3534.9,3.2078]
[1735917899477,1.0864,3535.7,3534.4,3.2078]
[1735917899678,0.2831,3535.0,3534.4,3.2078]
[1735917899876,4.2942,3535.7,3534.8,3.2078]
[1735917900076,0.558,3535.8,3535.7,0.28304]
[1735917900472,5.70125245,3536.3,3535.0,3.2078]
[1735917900776,0.28306,3535.5,3535.3,0.28307]
[1735917900973,3.2078,3535.9,3535.1,2.49345245]
[1735917901176,1.295,3536.0,3535.5,3.2078]
[1735917901478,0.28303,3535.8,3535.7,0.28304]
[1735917901780,0.28303,3535.8,3535.5,3.2078]
[1735917901781,0.5863,3536.2,3536.1,0.283]
[1735917902674,0.8693,3536.2,3536.0,0.28301]
[1735917903272,0.8693,3536.2,3535.9,3.2078]
[1735917903575,0.28302,3536.0,3535.8,0.28303]
[1735917903774,0.28302,3535.9,3535.7,0.28303]
[1735917903978,0.28301,3536.1,3535.9,0.28302]
[1735917904377,0.28301,3536.1,3535.5,5.70125245]
[1735917904378,0.5863,3536.2,3535.8,0.28302]
[1735917904579,0.28301,3536.1,3535.9,0.28302]
[1735917904782,0.283,3536.1,3535.8,0.28302]
[1735917905078,0.5863,3536.2,3535.5,5.70125245]
[1735917905282,0.28301,3536.0,3535.5,5.70125245]
[1735917905476,0.5863,3536.2,3535.5,3.2078]
[1735917905678,0.28303,3535.8,3535.6,0.28304]
[1735917906075,0.5863,3536.2,3535.5,3.2078]
[1735917906281,0.28302,3535.9,3535.5,3.2078]
[1735917906469,0.5863,3536.2,3535.5,3.2078]
[1735917906973,0.5863,3536.2,3536.1,0.283]
[1735917908176,0.28296,3536.7,3536.0,0.99055]
[1735917908377,1.0564,3536.8,3535.9,5.70125245]
[1735917908572,0.5594,3536.9,3536.1,0.70752]
[1735917908778,0.5594,3536.9,3536.8,0.28295]
[1735917911689,3.2078,3537.2,3537.1,0.28292]
[1735917912578,0.28292,3537.3,3536.4,3.2078]
[1735917912883,0.4247,3537.5,3536.8,3.2078]
[1735917913085,0.28292,3537.2,3536.8,3.2078]
[1735917913475,0.4247,3537.5,3536.8,3.2078]
[1735917913676,0.7076,3537.5,3537.4,0.2829]
[1735917913876,0.7076,3537.5,3537.3,0.2829]
[1735917913877,0.2829,3537.4,3537.3,0.2829]
[1735917914484,0.2829,3537.4,3537.2,0.28291]
[1735917914680,0.2829,3537.4,3537.3,0.28291]
[1735917914980,3.7602,3537.7,3536.8,3.2078]
[1735917914981,0.5524,3537.7,3537.1,2.49345245]
[1735917915180,3.2078,3538.5,3537.6,3.2078]
[1735917915387,0.28279,3538.8,3538.2,0.28284]
[1735917915593,0.28279,3538.9,3538.2,0.28284]
[1735917915884,0.6029,3539.0,3538.2,0.28284]
[1735917916379,3.8107,3539.0,3538.2,0.28284]
[1735917916575,0.29283,3538.3,3538.2,0.28284]
[1735917916977,0.29283,3538.3,3537.6,5.70125245]
[1735917917178,0.2725333,3538.3,3538.2,0.28284]
[1735917917374,1.295,3538.9,3537.6,3.2078]
[1735917917580,0.70698,3538.8,3537.6,3.2078]
[1735917917786,0.28281,3538.5,3537.6,3.2078]
[1735917917985,0.28282,3538.4,3538.3,0.28282]
[1735917918379,5.70125245,3538.6,3538.4,0.28282]
[1735917918577,6.30415245,3539.0,3538.0,3.2078]
[1735917918776,6.30415245,3539.0,3538.7,0.28279]
[1735917918777,0.28279,3538.9,3538.7,0.28279]
[1735917919085,0.28279,3538.8,3538.6,0.2828]
[1735917919287,3.2078,3538.9,3537.9,3.91496]
[1735917919585,0.28282,3538.4,3538.0,0.28285]
[1735917919786,3.2078,3538.9,3537.9,3.2078]
[1735917920187,0.28282,3538.4,3537.9,3.2078]
[1735917920386,0.28282,3538.5,3538.3,0.28282]
[1735917920587,2.49345245,3538.5,3538.4,0.28282]
[1735917920789,2.77626245,3538.5,3538.4,0.28282]
[1735917920982,0.28282,3538.4,3538.3,0.28283]
[1735917921287,2.77627245,3538.5,3538.3,0.28283]
[1735917921685,43.57627245,3538.5,3538.3,0.28283]
[1735917921885,0.28282,3538.4,3537.9,3.2078]
[1735917922188,43.29345245,3538.5,3538.4,0.28282]
[1735917922382,3.2078,3538.9,3538.8,0.28279]
[1735917922383,2.49345245,3538.9,3538.8,0.28279]
[1735917923083,2.49345245,3538.9,3538.3,3.2078]
[1735917923385,0.2828,3538.7,3538.0,0.70712]
[1735917923587,2.77623245,3538.9,3538.5,3.2078]
[1735917923786,2.77623245,3538.9,3538.8,0.28279]
[1735917924086,2.77623245,3538.9,3538.5,3.2078]
[1735917924087,2.49345245,3538.9,3538.5,3.2078]
[1735917924287,0.28279,3538.8,3538.7,0.28279]
[1735917924490,2.49345245,3538.9,3538.5,3.2078]
[1735917924883,2.77624245,3538.9,3538.5,3.2078]
[1735917925186,0.6029,3539.0,3538.6,0.70701]
[1735917925387,3.20240245,3539.3,3539.2,0.28276]
[1735917925695,2.91965245,3539.3,3539.2,0.28276]
[1735917925887,0.4262,3539.3,3539.2,0.28276]
[1735917926185,0.28276,3539.2,3539.0,0.28277]
[1735917926387,0.70895,3539.3,3538.9,3.2078]
[1735917926589,0.4262,3539.3,3539.2,0.28276]
[1735917926986,0.70895,3539.3,3539.1,0.28276]
[1735917927590,0.28276,3539.2,3539.0,0.28277]
[1735917927893,0.28277,3539.0,3538.9,0.28278]
[1735917928095,0.28278,3538.9,3538.8,0.28279]
[1735917928287,2.49345245,3539.2,3538.5,3.2078]
[1735917928893,0.2828,3538.7,3538.6,0.2828]
[1735917929193,0.28279,3538.9,3538.3,4.42896987]
[1735917929399,2.49345245,3539.2,3538.3,4.42896987]
[1735917929590,0.28281,3538.6,3538.5,0.28281]
[1735917929794,3.2078,3539.0,3538.3,0.28283]
[1735917929795,0.28283,3538.4,3538.3,0.28283]
[1735917930397,0.87322,3538.5,3538.4,0.28282]
[1735917930589,0.5904,3538.5,3538.4,0.28282]
[1735917933298,0.87321,3538.5,3538.4,0.28282]
[1735917933502,0.5904,3538.5,3538.4,0.28282]
[1735917934507,0.87321,3538.5,3538.4,0.28282]
[1735917934799,0.28283,3538.3,3538.2,0.0816]
[1735917935102,0.28285,3538.0,3537.6,0.28288]
[1735917935303,2.49345245,3538.1,3537.2,7.63676987]
[1735917935612,2.49345245,3538.1,3537.3,0.70728]
[1735917935907,2.49345245,3538.1,3537.2,7.63676987]
[1735917935908,0.28288,3537.7,3537.6,0.28288]
[1735917936108,0.2829,3537.5,3537.4,0.28289]
[1735917936901,3.91494,3538.0,3537.4,0.28289]
[1735917937098,0.2829,3537.6,3537.5,0.28289]
[1735917937305,0.28291,3537.4,3537.3,0.2829]
[1735917937607,3.2078,3538.0,3537.5,0.28289]
[1735917937608,0.28289,3537.6,3537.5,0.28289]
[1735917937809,0.2829,3537.5,3537.4,0.2829]
[1735917938409,1.0032,3537.6,3536.8,3.7752]
[1735917938709,0.28291,3537.4,3537.3,0.2829]
[1735917939307,0.28291,3537.4,3536.8,4.48256]
[1735917939308,1.0032,3537.6,3536.8,3.2078]
[1735917939611,0.28291,3537.3,3537.2,0.28291]
[1735917939808,0.28289,3537.5,3537.4,0.2829]
[1735917940306,1.0032,3537.6,3536.9,0.70736]
[1735917940511,0.28291,3537.4,3537.3,0.2829]
[1735917940707,1.0032,3537.6,3536.8,3.2078]
[1735917940899,1.0032,3537.6,3537.5,0.28289]
[1735917941707,1.28608,3537.6,3537.5,0.28289]
[1735917941903,0.2829,3537.5,3537.4,0.2829]
[1735917942712,0.28292,3537.2,3537.1,0.28292]
[1735917942909,0.28292,3537.2,3536.8,3.2078]
[1735917942910,0.28291,3537.3,3537.2,0.28291]
[1735917943112,4.211,3537.6,3536.8,3.2078]
[1735917943509,0.28291,3537.4,3537.3,0.2829]
[1735917945108,4.211,3537.6,3536.9,0.70735]
[1735917945312,0.4216,3537.6,3537.5,0.28289]
[1735917947916,0.70448,3537.6,3537.5,0.28289]
[1735917948120,0.4216,3537.6,3537.5,0.28289]
[1735917948412,5.17359113,3538.0,3537.2,3.91509]
[1735917948611,0.28287,3537.9,3537.8,0.28286]
[1735917948816,0.28288,3537.8,3537.7,0.28287]
[1735917950011,3.2078,3538.0,3537.2,5.17359113]
[1735917950318,3.2078,3538.0,3537.9,0.28286]
[1735917950514,0.9967,3538.1,3537.6,3.2078]
[1735917950810,0.9967,3538.1,3538.0,0.28285]
[1735917951019,1.27954,3538.1,3538.0,0.28285]
[1735917951815,0.9967,3538.1,3538.0,0.28285]
[1735917952008,1.27954,3538.1,3538.0,0.28285]
[1735917952210,0.93798974,3538.9,3538.0,0.28285]
[1735917952211,4.85029348,3539.4,3538.4,3.2078]
[1735917952409,4.76869348,3539.4,3539.3,2.24854113]
[1735917952813,1.74612348,3539.4,3539.3,7.82554113]
[1735917953015,0.08042348,3539.4,3539.3,7.82554113]
[1735917953320,3.48e-06,3539.4,3539.3,5.85975]
[1735917953518,40.8,3540.2,3539.3,5.0]
[1735917953715,3.23579113,3541.0,3540.1,3.2078]
[1735917954219,42.76579113,3540.7,3540.1,3.2078]
[1735917954419,40.8,3540.7,3540.1,3.2078]
[1735917954615,40.8,3540.7,3540.5,3.2078]
[1735917954820,40.8,3540.7,3540.6,0.28264]
[1735917955217,1.27,3541.2,3540.5,3.2078]
[1735917955521,1.55259,3541.4,3540.9,3.2078]
[1735917955716,40.8,3541.1,3541.0,0.28261]
[1735917956222,2.48520091,3542.0,3540.9,3.2078]
[1735917956515,2.48520091,3542.0,3541.3,3.2078]
[1735917956516,0.28254,3541.9,3541.3,3.2078]
[1735917956720,40.8,3541.8,3541.7,3.49036]
[1735917956923,0.28252,3542.2,3541.7,3.2078]
[1735917957121,0.28252,3542.2,3541.9,0.28254]
[1735917957418,1.0468,3542.1,3541.9,0.28254]
[1735917957613,1.32933,3542.1,3541.8,0.28255]
[1735917957815,1.0468,3542.1,3541.7,3.2078]
[1735917958023,1.0468,3542.1,3541.8,0.28254]
[1735917958219,2.48520091,3542.0,3541.4,0.28258]
[1735917958418,2.48520091,3542.0,3541.3,3.2078]
[1735917958621,0.28254,3541.9,3541.6,0.28256]
[1735917958821,0.28255,3541.8,3541.5,0.28257]
[1735917959022,2.48520091,3542.0,3541.3,3.2078]
[1735917959217,0.28256,3541.7,3541.3,3.2078]
[1735917959425,0.28254,3541.9,3541.6,0.28256]
[1735917959726,2.48520091,3542.0,3540.9,3.2078]
[1735917959727,0.70638,3541.8,3540.9,3.2078]
[1735917959928,0.70638,3541.8,3540.6,3.2078]
[1735917959929,2.48520091,3541.4,3540.6,3.2078]
[1735917960127,2.48520091,3541.0,3540.6,3.2078]
[1735917960325,2.48520091,3541.0,3540.3,4.42896987]
[1735917960529,2.48520091,3541.0,3540.2,0.28268]
[1735917960530,2.76782091,3541.0,3540.2,0.28268]
[1735917960829,2.76782091,3541.0,3540.1,3.2078]
[1735917960830,2.48520091,3541.0,3540.1,3.2078]
[1735917961229,3.2078,3540.4,3539.7,4.42896987]
[1735917961427,0.28271,3539.9,3539.7,4.42896987]
[1735917961627,3.2078,3540.0,3539.7,4.42896987]